bitfinex/quotes_BTCUSD_20230405
["timestamp","ask_amount","ask_price","bid_price","bid_amount"]
[1680721350332,0.75510483,28014.0,28013.0,0.12406133]
[1680721350544,0.75510483,28014.0,28012.0,0.00018]
[1680721350723,0.40436856,28013.0,28011.0,0.17102901]
[1680721350960,0.46371475,28012.0,28011.0,0.17102901]
[1680721351174,0.81842531,28012.0,28011.0,0.17102901]
[1680721352039,0.83942531,28012.0,28011.0,0.17102901]
[1680721354181,0.86601026,28012.0,28011.0,0.17102901]
[1680721355001,0.86631026,28012.0,28011.0,0.17065479]
[1680721355214,0.86631026,28012.0,28011.0,0.29898786]
[1680721355630,0.86631026,28012.0,28011.0,0.17065479]
[1680721360054,0.86631026,28012.0,28011.0,0.29897931]
[1680721362115,0.86631026,28012.0,28011.0,0.29903931]
[1680721363386,0.86631026,28012.0,28011.0,0.29897931]
[1680721363983,0.40259551,28012.0,28011.0,0.17065479]
[1680721364198,0.40259551,28012.0,28011.0,0.19380919]
[1680721365730,0.40259551,28012.0,28011.0,0.29897984]
[1680721365936,0.40259551,28012.0,28011.0,0.17065479]
[1680721367007,0.40259551,28012.0,28011.0,0.18871734]
[1680721369796,0.40259551,28012.0,28011.0,0.4022786]
[1680721371019,0.04788495,28012.0,28011.0,0.23162381]
[1680721371226,0.04758495,28012.0,28011.0,0.23162381]
[1680721375888,0.04751148,28012.0,28011.0,0.23162381]
[1680721376509,0.04751148,28012.0,28011.0,0.40271906]
[1680721378028,0.04751148,28012.0,28011.0,0.23162381]
[1680721378449,0.04751148,28012.0,28011.0,0.40272061]
[1680721378629,0.04751148,28012.0,28011.0,0.23162381]
[1680721387611,0.09709548,28012.0,28011.0,0.23162381]
[1680721387819,0.09709548,28012.0,28011.0,0.23168381]
[1680721388025,0.04751148,28012.0,28011.0,0.23168381]
[1680721388236,0.04751148,28012.0,28011.0,0.23162381]
[1680721388460,0.09845748,28012.0,28011.0,0.23162381]
[1680721388676,0.04751148,28012.0,28011.0,0.23168381]
[1680721388877,0.04751148,28012.0,28011.0,0.23162381]
[1680721393833,0.09840048,28012.0,28011.0,0.40279392]
[1680721394041,0.09840048,28012.0,28011.0,0.40285392]
[1680721394450,0.45311104,28012.0,28011.0,0.38479137]
[1680721394659,0.89501656,28012.0,28011.0,0.38491137]
[1680721395277,0.89501656,28012.0,28011.0,0.17135011]
[1680721395413,0.89501656,28012.0,28011.0,0.38479137]
[1680721395618,0.89501656,28012.0,28011.0,0.38491137]
[1680721396760,0.45311104,28012.0,28011.0,0.38492047]
[1680721396985,0.45311104,28012.0,28011.0,0.21374126]
[1680721397197,0.45304575,28012.0,28011.0,0.21368126]
[1680721397618,0.45304575,28012.0,28011.0,0.38486002]
[1680721397827,0.45304575,28012.0,28011.0,0.38492002]
[1680721399046,0.45304575,28012.0,28011.0,0.17135876]
[1680721399247,0.45304575,28012.0,28011.0,0.17123876]
[1680721403979,0.45304575,28012.0,28011.0,0.38480002]
[1680721404194,0.45304575,28012.0,28011.0,0.38492002]
[1680721406089,0.45304575,28012.0,28011.0,0.17135876]
[1680721406221,0.45304575,28012.0,28011.0,0.17123876]
[1680721407130,0.82586414,28012.0,28011.0,0.17123876]
[1680721407339,0.90226414,28012.0,28011.0,0.29962142]
[1680721407539,0.90226414,28012.0,28011.0,0.29974142]
[1680721407869,0.52944575,28012.0,28011.0,0.29974142]
[1680721408073,0.8690225,28012.0,28011.0,0.08565112]
[1680721408277,0.8690225,28012.0,28011.0,0.08559112]
[1680721408509,0.8693225,28012.0,28011.0,0.08559112]
[1680721408931,0.84846126,28012.0,28011.0,0.08559112]
[1680721409134,0.87546126,28012.0,28011.0,0.08559112]
[1680721409372,0.84846126,28012.0,28011.0,0.08559112]
[1680721409512,0.87546126,28012.0,28011.0,0.08559112]
[1680721409895,0.84846126,28012.0,28011.0,0.08559112]
[1680721410096,0.87546126,28012.0,28011.0,0.08559112]
[1680721410343,0.1,28011.0,28010.0,0.25966642]
[1680721410542,0.58099056,28011.0,28010.0,0.13128376]
[1680721410748,0.58129056,28011.0,28010.0,0.13128376]
[1680721411152,0.61258441,28011.0,28010.0,0.13128376]
[1680721411350,0.58129056,28011.0,28010.0,0.13128376]
[1680721411930,0.60829056,28011.0,28010.0,0.13128376]
[1680721412138,0.63933603,28011.0,28010.0,0.13128376]
[1680721414438,0.53933603,28011.0,28010.0,0.13128376]
[1680721418700,0.53933603,28011.0,28010.0,0.25966642]
[1680721418907,0.41305603,28011.0,28010.0,0.13128376]
[1680721419940,0.46760303,28011.0,28010.0,0.13128376]
[1680721421906,0.46754163,28011.0,28010.0,0.13128376]
[1680721422107,0.46724163,28011.0,28010.0,0.13128376]
[1680721423157,0.05804547,28011.0,28010.0,0.13128376]
[1680721423357,0.05804547,28011.0,28010.0,0.2930714]
[1680721423593,0.05804547,28011.0,28010.0,0.58253266]
[1680721423798,0.05804547,28011.0,28010.0,0.43104494]
[1680721423978,0.05804547,28011.0,28010.0,0.60207717]
[1680721424111,0.027,28011.0,28010.0,0.60207717]
[1680721424313,0.0003,28015.0,28010.0,0.43104494]
[1680721424684,0.35471056,28015.0,28012.0,0.08551675]
[1680721424890,0.35471056,28015.0,28012.0,0.21368757]
[1680721425066,0.35501056,28015.0,28012.0,0.21368757]
[1680721425267,0.39133599,28014.0,28011.0,0.37542864]
[1680721425470,0.78536676,28014.0,28011.0,0.12827513]
[1680721426195,0.4287289,28013.0,28011.0,0.12827513]
[1680721426389,0.35471056,28012.0,28011.0,0.12827513]
[1680721428110,0.37571056,28012.0,28011.0,0.12827513]
[1680721429415,0.42972256,28012.0,28011.0,0.12827513]
[1680721430054,0.42926356,28012.0,28011.0,0.12827513]
[1680721433383,0.85932426,28012.0,28010.0,0.17414777]
[1680721433605,0.048542,28011.0,28010.0,0.17414777]
[1680721433843,0.40325256,28011.0,28010.0,0.17414777]
[1680721434472,0.41825256,28011.0,28010.0,0.17414777]
[1680721434693,0.41825256,28011.0,28010.0,0.17402777]
[1680721434904,0.41825256,28011.0,28010.0,0.25956821]
[1680721435123,0.41825256,28011.0,28010.0,0.25968821]
[1680721435959,0.41825256,28011.0,28010.0,0.17414777]
[1680721436171,0.41825256,28011.0,28010.0,0.17402777]
[1680721438071,0.41749969,28011.0,28010.0,0.17402777]
[1680721438276,0.41749969,28011.0,28010.0,0.17396777]
[1680721439112,0.41749969,28011.0,28010.0,0.13123831]
[1680721440418,0.42446011,28011.0,28010.0,0.13123831]
[1680721440809,0.37667098,28011.0,28010.0,0.25951344]
[1680721441014,0.42731898,28011.0,28010.0,0.25957344]
[1680721441221,0.37667098,28011.0,28010.0,0.25957344]
[1680721441664,0.42904698,28011.0,28010.0,0.25957344]
[1680721441868,0.42957198,28011.0,28010.0,0.25957344]
[1680721442292,0.46346433,28011.0,28010.0,0.25957344]
[1680721443524,0.46346433,28011.0,28010.0,0.17402777]
[1680721443654,0.46346433,28011.0,28010.0,0.17396777]
[1680721443863,0.46346433,28011.0,28010.0,0.25951607]
[1680721444082,0.46346433,28011.0,28010.0,0.13130094]
[1680721444282,0.46346433,28011.0,28010.0,0.13124094]
[1680721444485,0.46346433,28011.0,28010.0,0.25951607]
[1680721444687,0.46346433,28011.0,28010.0,0.25957607]
[1680721446724,0.46346433,28011.0,28010.0,0.13130094]
[1680721446933,0.46346433,28011.0,28010.0,0.25951607]
[1680721447141,0.46346433,28011.0,28010.0,0.25957607]
[1680721447351,0.46346433,28011.0,28010.0,0.13130094]
[1680721447557,0.85510492,28011.0,28010.0,0.13124094]
[1680721448304,0.84010492,28011.0,28010.0,0.13124094]
[1680721448501,0.86710492,28011.0,28010.0,0.13124094]
[1680721448755,0.86710492,28011.0,28010.0,0.04569264]
[1680721449388,0.84010492,28011.0,28010.0,0.04569264]
[1680721449599,0.86710492,28011.0,28010.0,0.04569264]
[1680721450230,0.86710492,28011.0,28009.0,0.08928287]
[1680721450443,0.35471056,28010.0,28009.0,0.0855483]
[1680721450650,0.40802156,28010.0,28009.0,0.0855483]
[1680721451268,0.44171112,28010.0,28009.0,0.0855483]
[1680721451473,0.40802156,28010.0,28009.0,0.0855483]
[1680721451905,0.43502156,28010.0,28009.0,0.0855483]
[1680721457218,0.46871112,28010.0,28009.0,0.0855483]
[1680721457798,0.41540012,28010.0,28009.0,0.0855483]
[1680721458003,0.46706212,28010.0,28009.0,0.0855483]
[1680721460495,0.46736212,28010.0,28009.0,0.0855483]
[1680721460701,0.46799412,28010.0,28009.0,0.0855483]
[1680721461126,0.46769412,28010.0,28009.0,0.0855483]
[1680721464465,0.41540012,28010.0,28009.0,0.0855483]
[1680721465029,0.46467012,28010.0,28009.0,0.0855483]
[1680721466328,0.41540012,28010.0,28009.0,0.0855483]
[1680721466459,0.46809212,28010.0,28009.0,0.0855483]
[1680721466667,0.41540012,28010.0,28009.0,0.0855483]
[1680721466878,0.41540012,28010.0,28009.0,0.23485737]
[1680721467078,0.41570012,28010.0,28009.0,0.10652429]
[1680721467647,0.41570012,28010.0,28009.0,0.14930907]
[1680721468165,0.38201056,28010.0,28009.0,0.14930907]
[1680721468662,0.38201056,28010.0,28009.0,0.23483651]
[1680721468865,0.38201056,28010.0,28009.0,0.10652244]
[1680721469101,0.38201056,28010.0,28009.0,0.23483651]
[1680721469280,0.41570012,28010.0,28009.0,0.23483651]
[1680721470516,0.41570012,28010.0,28009.0,0.14930907]
[1680721470714,0.41570012,28010.0,28009.0,0.23484583]
[1680721470922,0.41570012,28010.0,28009.0,0.10653176]
[1680721471121,0.46734712,28010.0,28009.0,0.10653176]
[1680721473001,0.41570012,28010.0,28009.0,0.23484583]
[1680721473345,0.41570012,28010.0,28009.0,0.14930907]
[1680721473773,0.41570012,28010.0,28009.0,0.23485447]
[1680721474348,0.41570012,28010.0,28009.0,0.1065404]
[1680721475386,0.41570012,28010.0,28009.0,0.23485447]
[1680721475845,0.41570012,28010.0,28009.0,0.14930907]
[1680721478258,0.41570012,28010.0,28009.0,0.32034258]
[1680721481101,0.41053165,28010.0,28009.0,0.32052258]
[1680721482077,0.06068956,28010.0,28009.0,0.19220851]
[1680721482279,0.06068956,28010.0,28009.0,0.19202851]
[1680721483333,0.027,28010.0,28009.0,0.19202851]
[1680721487145,0.43159456,28010.0,28009.0,0.29942512]
[1680721487354,0.83954641,28010.0,28009.0,0.12857161]
[1680721487557,0.83954641,28010.0,28009.0,0.12839161]
[1680721487974,0.91544641,28010.0,28009.0,0.12839161]
[1680721488341,0.87182716,28010.0,28009.0,0.12839161]
[1680721488574,0.87212716,28010.0,28009.0,0.12839161]
[1680721488682,0.87182716,28010.0,28009.0,0.12839161]
[1680721488890,0.87182716,28010.0,28009.0,0.08559985]
[1680721489085,0.84482716,28010.0,28009.0,0.08559985]
[1680721489290,0.87182716,28010.0,28009.0,0.08559985]
[1680721489689,0.84482716,28010.0,28009.0,0.08559985]
[1680721489905,0.87182716,28010.0,28009.0,0.08559985]
[1680721491268,0.87182716,28010.0,28009.0,0.21399146]
[1680721491269,0.41399131,28010.0,28009.0,0.21399146]
[1680721491469,0.41399131,28010.0,28009.0,0.23374219]
[1680721494352,0.41399131,28010.0,28009.0,0.10535058]
[1680721494554,0.41399131,28010.0,28009.0,0.23362219]
[1680721494758,0.41399131,28010.0,28009.0,0.23374219]
[1680721497242,0.41399131,28010.0,28009.0,0.21411146]
[1680721498986,0.41399131,28010.0,28009.0,0.08571985]
[1680721499188,0.41399131,28010.0,28009.0,0.08559985]
[1680721500325,0.46579831,28010.0,28009.0,0.08559985]
[1680721505560,0.90384716,28010.0,28009.0,0.08559985]
[1680721508350,0.90384716,28010.0,28008.0,0.21417146]
[1680721508562,0.40823556,28009.0,28008.0,0.21417146]
[1680721509003,0.40823556,28009.0,28008.0,0.08577985]
[1680721509361,0.40823556,28009.0,28008.0,0.08571985]
[1680721509561,0.43523556,28009.0,28008.0,0.08571985]
[1680721509789,0.43523556,28009.0,28008.0,0.08577985]
[1680721510006,0.43523556,28009.0,28008.0,0.21417146]
[1680721510395,0.43523556,28009.0,28008.0,0.08577985]
[1680721511132,0.43523556,28009.0,28008.0,0.12857161]
[1680721511654,0.43523556,28009.0,28008.0,0.08575776]
[1680721512592,0.43523556,28009.0,28008.0,0.08569776]
[1680721513591,0.38171056,28009.0,28008.0,0.23702324]
[1680721514646,0.38171056,28009.0,28008.0,0.15144548]
[1680721516768,0.38201056,28009.0,28008.0,0.15126548]
[1680721517171,0.38171056,28009.0,28008.0,0.15144548]
[1680721517403,0.40979917,28009.0,28008.0,0.15144548]
[1680721521745,0.46423417,28009.0,28008.0,0.15144548]
[1680721523440,0.40979917,28009.0,28008.0,0.15144548]
[1680721524024,0.46233817,28009.0,28008.0,0.15144548]
[1680721524198,0.46233817,28009.0,28008.0,0.12857161]
[1680721528276,0.40979917,28009.0,28008.0,0.12857161]
[1680721528539,0.40979917,28009.0,28008.0,0.1485837]
[1680721528712,0.40979917,28009.0,28008.0,0.31961721]
[1680721530119,0.40979917,28009.0,28008.0,0.1485837]
[1680721530326,0.45941517,28009.0,28008.0,0.1485837]
[1680721531566,0.40979917,28009.0,28008.0,0.1485837]
[1680721531778,0.46207417,28009.0,28008.0,0.1485837]
[1680721531910,0.46084017,28009.0,28008.0,0.1485837]
[1680721532112,0.40979917,28009.0,28008.0,0.1485837]
[1680721532318,0.42514249,28009.0,28008.0,0.1485837]
[1680721532898,0.47597049,28009.0,28008.0,0.1485837]
[1680721533305,0.42514249,28009.0,28008.0,0.1912256]
[1680721533724,0.42514249,28009.0,28008.0,0.31963452]
[1680721538007,0.07043193,28009.0,28008.0,0.22094126]
[1680721538221,0.06393193,28009.0,28008.0,0.87707351]
[1680721538438,0.0003,28015.0,28009.0,0.1]
[1680721538650,0.0003,28018.0,28014.0,0.17103508]
[1680721538875,6e-05,28018.0,28017.0,0.08551299]
[1680721539092,0.00024,28021.0,28017.0,0.77642597]
[1680721539093,9e-05,28021.0,28017.0,0.77642597]
[1680721539308,0.0003,28022.0,28020.0,0.1522]
[1680721539532,0.33535453,28025.0,28021.0,0.0762]
[1680721539745,0.33535453,28025.0,28024.0,0.0764]
[1680721540147,0.33535453,28025.0,28023.0,0.0761]
[1680721540384,0.06105673,28024.0,28023.0,0.0761]
[1680721541485,0.06105673,28024.0,28023.0,0.09878145]
[1680721541697,0.06605673,28024.0,28023.0,0.09878145]
[1680721542123,0.06605673,28024.0,28023.0,0.1525]
[1680721542329,0.06605673,28024.0,28023.0,0.18304745]
[1680721542557,0.06605673,28024.0,28023.0,0.49028345]
[1680721543634,0.06105673,28024.0,28023.0,0.49028345]
[1680721543880,0.06205673,28024.0,28023.0,0.51128345]
[1680721547997,0.06205673,28024.0,28023.0,0.404636]
[1680721548215,0.06235673,28024.0,28023.0,0.0974]
[1680721548432,0.06205673,28024.0,28023.0,0.0974]
[1680721551861,0.06205673,28024.0,28023.0,0.0974]
[1680721554927,0.86206438,28024.0,28023.0,0.021]
[1680721555134,0.91373538,28024.0,28023.0,0.021]
[1680721555535,0.91420638,28024.0,28023.0,0.021]
[1680721556620,0.86236438,28024.0,28023.0,0.021]
[1680721556809,0.91376738,28024.0,28023.0,0.021]
[1680721557231,0.86236438,28024.0,28023.0,0.021]
[1680721557444,0.91440538,28024.0,28023.0,0.021]
[1680721557635,0.86236438,28024.0,28023.0,0.021]
[1680721558251,0.91630438,28024.0,28023.0,0.021]
[1680721558654,0.86236438,28024.0,28023.0,0.021]
[1680721558799,0.91344038,28024.0,28023.0,0.021]
[1680721559003,0.91244038,28024.0,28020.0,0.1402451]
[1680721559250,0.86236438,28024.0,28023.0,0.015]
[1680721559452,0.91437238,28024.0,28023.0,0.015]
[1680721559634,0.42402241,28023.0,28019.0,0.00540844]
[1680721559837,0.56621922,28023.0,28020.0,0.0756]
[1680721560094,0.42432241,28023.0,28020.0,0.0756]
[1680721560693,0.42432241,28023.0,28022.0,0.0761]
[1680721561437,0.42532241,28023.0,28022.0,0.0761]
[1680721561555,0.42432241,28023.0,28022.0,0.08337]
[1680721562001,0.42432241,28023.0,28022.0,0.0761]
[1680721562354,0.48110219,28023.0,28022.0,0.0761]
[1680721563586,0.05707978,28023.0,28022.0,0.0761]
[1680721563789,0.05707978,28023.0,28022.0,0.083367]
[1680721563946,0.05707978,28023.0,28022.0,0.0761]
[1680721564353,0.05707978,28023.0,28022.0,0.15727319]
[1680721564570,0.05677978,28023.0,28022.0,0.15727319]
[1680721564766,0.05677978,28023.0,28022.0,0.32617019]
[1680721564921,0.05677978,28023.0,28022.0,0.74400364]
[1680721565116,0.05677978,28023.0,28022.0,0.73873045]
[1680721565317,0.03297812,28027.0,28022.0,0.73873045]
[1680721565523,0.02425112,28027.0,28026.0,0.1522]
[1680721566157,0.08031112,28027.0,28026.0,0.1522]
[1680721567017,0.08231112,28027.0,28026.0,0.1522]
[1680721567234,0.08031112,28027.0,28026.0,0.1522]
[1680721567516,0.08231112,28027.0,28026.0,0.1642]
[1680721567730,0.08231112,28027.0,28026.0,0.17023722]
[1680721568380,0.08231112,28027.0,28026.0,0.09401722]
[1680721568595,0.08231112,28027.0,28026.0,0.09383722]
[1680721570693,0.08231112,28027.0,28026.0,0.12970355]
[1680721571129,0.08231112,28027.0,28026.0,0.13820355]
[1680721571344,0.26231112,28027.0,28026.0,0.13838355]
[1680721572443,0.26231112,28027.0,28026.0,0.21478355]
[1680721572652,0.26231112,28027.0,28026.0,0.51478355]
[1680721575302,0.25355545,28027.0,28026.0,1.18779034]
[1680721575547,0.23119341,28027.0,28026.0,1.54419034]
[1680721575795,0.2115443,28027.0,28026.0,1.54413034]
[1680721576269,0.182,28027.0,28026.0,1.54413034]
[1680721576505,0.182,28027.0,28026.0,1.64401034]
[1680721576738,0.182,28027.0,28026.0,1.64419034]
[1680721576963,0.161542,28027.0,28026.0,1.64413034]
[1680721577168,0.161542,28027.0,28026.0,1.64401034]
[1680721577373,0.161542,28027.0,28026.0,1.63201034]
[1680721577619,0.161542,28027.0,28026.0,1.66001034]
[1680721577824,0.161542,28027.0,28026.0,1.63201034]
[1680721578030,0.161542,28027.0,28026.0,1.63213034]
[1680721578914,0.161542,28027.0,28026.0,1.66013034]
[1680721579131,0.161542,28027.0,28026.0,1.56013034]
[1680721579347,0.161542,28027.0,28026.0,1.03921822]
[1680721579603,0.161542,28027.0,28026.0,0.87807822]
[1680721579825,0.161542,28027.0,28026.0,0.52167822]
[1680721580266,0.20888743,28027.0,28026.0,0.52167822]
[1680721580904,0.20888743,28027.0,28026.0,0.53005822]
[1680721581112,0.20888743,28027.0,28026.0,0.52999822]
[1680721581320,0.20888743,28027.0,28026.0,0.53005822]
[1680721581939,0.20888743,28027.0,28026.0,0.52999822]
[1680721582137,0.04734543,28027.0,28026.0,0.46159822]
[1680721582347,0.04734543,28027.0,28026.0,0.16159822]
[1680721583428,0.02417001,28030.0,28026.0,0.16159822]
[1680721583644,0.02387001,28030.0,28028.0,0.0847]
[1680721584684,0.02387001,28030.0,28028.0,0.1127]
[1680721585112,0.43926334,28030.0,28028.0,0.1127]
[1680721585322,0.43956334,28030.0,28028.0,0.1127]
[1680721586398,0.43956334,28030.0,28028.0,0.11834381]
[1680721586849,0.02417001,28030.0,28028.0,0.11834381]
[1680721587058,0.02387001,28030.0,28028.0,0.11834381]
[1680721588152,0.55758419,28029.0,28028.0,0.028]
[1680721588392,0.46910438,28029.0,28028.0,0.028]
[1680721589046,0.82381494,28029.0,28026.0,0.04497325]
[1680721589264,0.050448,28028.0,28026.0,0.04497325]
[1680721589484,0.050448,28028.0,28026.0,0.00910692]
[1680721591019,0.39639923,28027.0,28026.0,0.00910692]
[1680721592337,0.44576032,28027.0,28026.0,0.01010692]
[1680721592549,0.44376032,28027.0,28026.0,0.00910692]
[1680721593627,0.44376032,28027.0,28026.0,0.01310692]
[1680721594696,0.44406032,28027.0,28026.0,0.01310692]
[1680721597307,0.04766109,28027.0,28026.0,0.01310692]
[1680721598384,0.04766109,28027.0,28026.0,0.02037792]
[1680721598597,0.04766109,28027.0,28026.0,0.01310692]
[1680721598844,0.04766109,28027.0,28026.0,0.31310692]
[1680721599031,0.04766109,28027.0,28026.0,0.02025892]
[1680721599257,0.04766109,28027.0,28026.0,0.31310692]
[1680721599471,0.40237165,28027.0,28026.0,0.30910692]
[1680721599693,0.73685573,28027.0,28026.0,0.01310692]
[1680721599915,0.78763273,28027.0,28026.0,0.01310692]
[1680721600352,0.78763273,28027.0,28026.0,0.00910692]
[1680721600571,0.78763273,28027.0,28026.0,0.04493323]
[1680721600780,0.78763273,28027.0,28026.0,0.01310692]
[1680721600995,0.78763273,28027.0,28026.0,0.00910692]
[1680721601214,0.78963273,28027.0,28026.0,0.00910692]
[1680721601429,0.78763273,28027.0,28026.0,0.00910692]
[1680721602299,0.53754865,28027.0,28023.0,0.38550665]
[1680721602517,0.53754865,28027.0,28022.0,0.08550665]
[1680721602518,0.1,28025.0,28022.0,0.08550665]
[1680721602773,0.35471056,28024.0,28020.0,0.08568665]
[1680721602990,0.49690737,28024.0,28020.0,0.08550665]
[1680721603420,0.49690737,28024.0,28022.0,0.011]
[1680721603642,0.053362,28023.0,28022.0,0.011]
[1680721603862,0.40837256,28023.0,28020.0,0.08550665]
[1680721604098,0.35471056,28022.0,28019.0,0.08550665]
[1680721604315,0.82246657,28022.0,28020.0,0.011]
[1680721604526,0.68056976,28022.0,28020.0,0.011]
[1680721605384,0.68056976,28022.0,28020.0,0.08550665]
[1680721605575,0.68056976,28022.0,28020.0,0.09050665]
[1680721605810,0.68056976,28022.0,28019.0,0.08550665]
[1680721606029,0.084,28021.0,28020.0,0.005]
[1680721606241,0.48988156,28021.0,28020.0,0.005]
[1680721606443,0.49018156,28021.0,28020.0,0.005]
[1680721606668,0.94548748,28021.0,28018.0,0.30888344]
[1680721606877,0.0848,28019.0,28018.0,0.30888344]
[1680721607088,0.49012256,28019.0,28018.0,0.30888344]
[1680721607289,0.43981056,28019.0,28018.0,0.30888344]
[1680721607427,0.43981056,28019.0,28018.0,0.00888344]
[1680721608198,0.49420356,28019.0,28018.0,0.00888344]
[1680721608403,0.43981056,28019.0,28018.0,0.00888344]
[1680721608600,0.49411856,28019.0,28018.0,0.00988344]
[1680721609802,0.49011856,28019.0,28018.0,0.00888344]
[1680721610941,0.49411856,28019.0,28018.0,0.00988344]
[1680721611720,0.51196356,28019.0,28018.0,0.00988344]
[1680721612131,0.46165556,28019.0,28018.0,0.00988344]
[1680721612335,0.51538556,28019.0,28018.0,0.00988344]
[1680721612510,0.43138556,28019.0,28018.0,0.00988344]
[1680721614025,0.7964854,28019.0,28018.0,0.00988344]
[1680721614679,0.7201104,28019.0,28018.0,0.00888344]
[1680721615126,0.8047104,28019.0,28018.0,0.00888344]
[1680721615360,0.60061656,28019.0,28018.0,0.001]
[1680721615600,1.0116778,28019.0,28018.0,0.001]
[1680721615823,0.68277156,28019.0,28018.0,0.001]
[1680721616062,0.70061656,28019.0,28018.0,0.001]
[1680721616712,0.69661656,28019.0,28013.0,0.00489868]
[1680721616925,0.138909,28014.0,28013.0,0.00489868]
[1680721617172,0.43931056,28014.0,28009.0,0.08550665]
[1680721617352,0.58140737,28013.0,28010.0,0.00530244]
[1680721617835,0.43951056,28013.0,28010.0,0.00530244]
[1680721618305,0.35501056,28013.0,28010.0,0.30530244]
[1680721618519,0.35601056,28013.0,28010.0,0.31130244]
[1680721619368,0.35601056,28013.0,28010.0,0.01130244]
[1680721619566,0.35571056,28013.0,28010.0,0.01130244]
[1680721620947,0.35571056,28013.0,28010.0,0.006]
[1680721621146,0.084,28011.0,28010.0,0.006]
[1680721621359,0.49166056,28011.0,28010.0,0.006]
[1680721622167,0.40766056,28011.0,28010.0,0.006]
[1680721622377,0.44341694,28011.0,28008.0,0.00577552]
[1680721622582,0.40667056,28010.0,28008.0,0.00577552]
[1680721622791,0.35471056,28010.0,28008.0,0.00577552]
[1680721623203,0.03543603,28009.0,28008.0,0.00577552]
[1680721623417,0.35471056,28009.0,28008.0,0.01177552]
[1680721623630,0.40671756,28009.0,28008.0,0.006]
[1680721623831,0.40671756,28009.0,28006.0,0.44321027]
[1680721623832,0.40677756,28009.0,28006.0,0.18907036]
[1680721624053,0.35471056,28008.0,28005.0,0.40728665]
[1680721624255,0.35501056,28008.0,28005.0,0.40728665]
[1680721624894,0.35501056,28008.0,28005.0,0.32178]
[1680721625096,0.35501056,28008.0,28005.0,0.02178]
[1680721625292,0.70430296,28008.0,28005.0,0.04970957]
[1680721625499,0.70460296,28008.0,28005.0,0.0848632]
[1680721625937,0.41539188,28007.0,28005.0,0.0848632]
[1680721626150,0.35471056,28006.0,28005.0,0.0848632]
[1680721626564,0.35471056,28006.0,28005.0,0.0658632]
[1680721626765,0.35471056,28006.0,28005.0,0.0848632]
[1680721627169,0.35471056,28006.0,28005.0,0.0658632]
[1680721628195,0.35671056,28006.0,28005.0,0.0848632]
[1680721629380,0.77826091,28006.0,28005.0,0.0848632]
[1680721631251,0.83136691,28006.0,28005.0,0.0848632]
[1680721631464,0.82868591,28006.0,28005.0,0.0848632]
[1680721632097,0.77826091,28006.0,28005.0,0.0848632]
[1680721632505,0.83081291,28006.0,28005.0,0.0848632]
[1680721633104,0.82881291,28006.0,28005.0,0.0658632]
[1680721633524,0.77626091,28006.0,28005.0,0.0658632]
[1680721633924,0.82810391,28006.0,28005.0,0.0658632]
[1680721634132,0.83010391,28006.0,28005.0,0.0828632]
[1680721634328,0.82810391,28006.0,28005.0,0.0658632]
[1680721635182,0.82810391,28006.0,28005.0,0.05675363]
[1680721635439,0.83510391,28006.0,28005.0,0.05775363]
[1680721635840,0.83540391,28006.0,28005.0,0.05775363]
[1680721636254,0.41385356,28006.0,28005.0,0.0226]
[1680721636493,0.81920885,28006.0,28005.0,0.0226]
[1680721637078,0.41385356,28006.0,28005.0,0.0226]
[1680721637339,0.46664049,28006.0,28005.0,0.01910661]
[1680721637509,0.55074049,28006.0,28005.0,0.01910661]
[1680721638129,0.54374049,28006.0,28005.0,0.01810661]
[1680721638295,0.55574049,28006.0,28005.0,0.01568097]
[1680721638700,0.54374049,28006.0,28005.0,0.01468097]
[1680721638901,0.56974049,28006.0,28005.0,0.01568097]
[1680721639307,0.56974049,28006.0,28005.0,0.01225443]
[1680721639514,0.65424049,28006.0,28005.0,0.01225443]
[1680721639714,0.77553514,28006.0,28005.0,0.01225443]
[1680721639986,0.74953514,28006.0,28005.0,0.01125443]
[1680721640192,0.87553514,28006.0,28005.0,0.01225443]
[1680721640436,0.30787065,28005.0,28003.0,8e-05]
[1680721640678,1.43069256,28004.0,28003.0,8e-05]
[1680721640856,1.53069256,28004.0,28003.0,8e-05]
[1680721641338,0.051886,28003.0,28000.0,0.02168]
[1680721641579,0.52411056,28001.0,28000.0,0.02168]
[1680721641825,0.59232456,28001.0,28000.0,0.02168]
[1680721642240,0.69232456,28001.0,28000.0,0.02168]
[1680721642464,0.69232456,28001.0,28000.0,0.01841553]
[1680721643313,0.75165391,28001.0,28000.0,0.01518259]
[1680721643527,0.86692976,28001.0,28000.0,0.01518259]
[1680721643948,0.83992976,28001.0,28000.0,0.01518259]
[1680721644163,0.86692976,28001.0,28000.0,0.01518259]
[1680721644377,0.86692976,28001.0,28000.0,0.01193541]
[1680721645054,1.18912976,28001.0,28000.0,0.01193541]
[1680721645274,1.34912976,28001.0,28000.0,0.00814579]
[1680721645494,1.32212976,28001.0,28000.0,0.00814579]
[1680721645912,1.34912976,28001.0,28000.0,0.00814579]
[1680721646132,1.32342976,28001.0,27999.0,1.015e-05]
[1680721646341,0.125003,27999.0,27998.0,0.0216]
[1680721646567,0.88054656,27999.0,27998.0,0.0216]
[1680721646780,1.18940538,27999.0,27998.0,0.0216]
[1680721647436,1.21640538,27999.0,27998.0,0.01843489]
[1680721647643,1.18940538,27999.0,27998.0,0.01843489]
[1680721648286,1.22071021,27999.0,27998.0,0.01530441]
[1680721648536,1.25621021,27999.0,27998.0,0.01530441]
[1680721649198,1.25621021,27999.0,27998.0,0.01222279]
[1680721650320,1.22921021,27999.0,27998.0,0.00919144]
[1680721650526,1.25621021,27999.0,27998.0,0.00919144]
[1680721651390,1.25621021,27999.0,27998.0,0.00620796]
[1680721652466,1.25621021,27999.0,27998.0,0.00265762]
[1680721653333,0.1,27998.0,27997.0,0.0216]
[1680721653544,0.92648172,27998.0,27997.0,0.0216]
[1680721654199,1.06870418,27998.0,27997.0,0.0216]
[1680721654412,1.10688286,27998.0,27997.0,0.01734764]
[1680721654627,0.8068604,27998.0,27997.0,0.01734764]
[1680721654843,0.93910456,27998.0,27997.0,0.01734764]
[1680721655096,0.57356924,27998.0,27997.0,0.01734764]
[1680721655328,0.53539056,27998.0,27997.0,0.01458083]
[1680721656419,0.55848322,27998.0,27997.0,0.01458083]
[1680721656631,0.67636314,27998.0,27997.0,0.01458083]
[1680721657048,0.64936314,27998.0,27997.0,0.01458083]
[1680721657254,0.67636314,27998.0,27997.0,0.01458083]
[1680721659174,1.11889001,27998.0,27997.0,0.01458083]
[1680721659382,0.67636314,27998.0,27997.0,0.01458083]
[1680721659800,0.64936314,27998.0,27997.0,0.01458083]
[1680721660210,0.67636314,27998.0,27997.0,0.01458083]
[1680721660434,0.64936314,27998.0,27997.0,0.01458083]
[1680721660638,0.67636314,27998.0,27997.0,0.01458083]
[1680721665019,1.0263113,27998.0,27997.0,0.01458083]
[1680721665451,0.67636314,27998.0,27997.0,0.01458083]
[1680721665846,0.92321676,27998.0,27997.0,0.01458083]
[1680721666081,0.80533684,27998.0,27997.0,0.01458083]